bitfinex/quotes_SOLUSD_20250604
["timestamp","ask_amount","ask_price","bid_price","bid_amount"]
[1749047050302,44.79181043,155.42,155.34,20.0]
[1749047050693,44.79181043,155.42,155.35,20.0]
[1749047051013,26.0,155.42,155.35,20.0]
[1749047052917,1.619,155.43,155.37,20.0]
[1749047052918,26.0,155.43,155.37,20.0]
[1749047057493,26.0,155.43,155.36,20.0]
[1749047058599,26.0,155.43,155.37,20.0]
[1749047059026,26.0,155.43,155.36,20.0]
[1749047059251,26.0,155.43,155.35,20.0]
[1749047059900,26.0,155.39,155.34,20.0]
[1749047060527,26.0,155.39,155.31,20.0]
[1749047060727,26.0,155.39,155.3,6.34256157]
[1749047060728,26.0,155.37,155.3,26.2004]
[1749047061024,26.0,155.37,155.31,20.0]
[1749047063229,26.0,155.37,155.3,26.2004]
[1749047063434,26.0,155.37,155.31,20.0]
[1749047064126,26.0,155.37,155.3,26.2004]
[1749047064745,18.79181043,155.36,155.29,20.0]
[1749047065042,26.0,155.37,155.31,20.0]
[1749047074716,26.0,155.37,155.3,20.0]
[1749047074908,26.0,155.37,155.31,20.0]
[1749047076927,26.0,155.37,155.3,20.0]
[1749047077129,26.0,155.37,155.31,20.0]
[1749047077833,18.64964886,155.41,155.33,20.0]
[1749047078044,44.64964886,155.41,155.33,20.0]
[1749047078334,26.0,155.38,155.32,20.0]
[1749047079343,44.64964886,155.41,155.33,20.0]
[1749047079547,44.64964886,155.41,155.34,20.0]
[1749047079895,26.0,155.41,155.34,20.0]
[1749047080215,1.5006,155.42,155.35,20.0]
[1749047080722,1.5483,155.53,155.44,20.0]
[1749047080925,1.5483,155.53,155.45,20.0]
[1749047080926,4.72689008,155.53,155.45,20.0]
[1749047081129,26.0,155.52,155.45,20.0]
[1749047082216,1.5483,155.53,155.47,20.0]
[1749047082437,10.2277628,155.58,155.47,20.0]
[1749047082640,0.14216157,155.57,155.48,20.0]
[1749047082934,26.0,155.56,155.48,20.0]
[1749047083141,0.14216157,155.57,155.48,20.0]
[1749047083435,26.0,155.56,155.48,20.0]
[1749047083851,18.64964886,155.55,155.48,20.0]
[1749047084039,18.64964886,155.55,155.46,20.0]
[1749047084040,0.14216157,155.54,155.46,20.0]
[1749047084241,26.0,155.55,155.47,20.0]
[1749047085645,26.0,155.55,155.46,20.0]
[1749047085848,26.0,155.55,155.47,20.0]
[1749047086041,18.79181043,155.54,155.46,20.0]
[1749047086949,18.79181043,155.54,155.47,20.0]
[1749047087660,18.79181043,155.54,155.46,20.0]
[1749047087972,18.79181043,155.54,155.45,20.0]
[1749047088271,26.0,155.51,155.45,20.0]
[1749047088473,26.0,155.51,155.46,20.0]
[1749047090766,0.28432314,155.56,155.46,20.0]
[1749047090969,26.0,155.54,155.47,20.0]
[1749047093952,26.0,155.54,155.45,20.0]
[1749047094355,26.0,155.54,155.47,20.0]
[1749047094555,18.79181043,155.53,155.45,20.0]
[1749047094964,18.79181043,155.53,155.43,26.0]
[1749047094965,18.79181043,155.53,155.44,20.0]
[1749047095340,18.79181043,155.53,155.47,20.0]
[1749047095671,18.79181043,155.53,155.46,20.0]
[1749047096043,18.79181043,155.53,155.45,20.0]
[1749047096249,18.79181043,155.53,155.44,20.0]
[1749047096566,0.14216157,155.52,155.43,20.0]
[1749047096770,26.0,155.5,155.42,20.0]
[1749047096944,18.79181043,155.49,155.42,20.0]
[1749047097364,18.79181043,155.49,155.41,26.6237]
[1749047097576,18.79181043,155.49,155.43,20.0]
[1749047098052,18.79181043,155.49,155.42,20.0]
[1749047098367,18.79181043,155.49,155.43,20.0]
[1749047100774,26.0,155.49,155.44,20.0]
[1749047100974,1.5446,155.51,155.44,20.0]
[1749047101153,1.5446,155.51,155.45,20.0]
[1749047101353,1.5446,155.51,155.41,6.6237]
[1749047101354,1.5446,155.51,155.44,20.0]
[1749047101559,1.5446,155.51,155.45,20.0]
[1749047103374,26.0,155.52,155.45,20.0]
[1749047103973,18.79181043,155.51,155.45,20.0]
[1749047105277,18.79181043,155.51,155.44,20.0]
[1749047105468,26.0,155.52,155.45,20.0]
[1749047105981,18.64964886,155.54,155.47,20.0]
[1749047106485,44.64964886,155.54,155.47,20.0]
[1749047107061,0.14216157,155.53,155.47,20.0]
[1749047107470,0.14216157,155.53,155.46,20.0]
[1749047107759,0.14216157,155.53,155.47,20.0]
[1749047108177,0.14216157,155.53,155.46,20.0]
[1749047108584,26.0,155.51,155.45,20.0]
[1749047108886,26.0,155.51,155.46,20.0]
[1749047109467,26.0,155.51,155.44,20.0]
[1749047109685,26.0,155.51,155.46,20.0]
[1749047109989,26.0,155.51,155.45,20.0]
[1749047110182,26.0,155.51,155.46,20.0]
[1749047110692,26.0,155.51,155.44,20.0]
[1749047110863,26.0,155.51,155.46,20.0]
[1749047111062,26.0,155.51,155.44,20.0]
[1749047111257,26.0,155.51,155.46,20.0]
[1749047114689,26.0,155.49,155.42,20.0]
[1749047114884,18.79181043,155.48,155.4,21.5995]
[1749047115214,18.79181043,155.48,155.42,20.0]
[1749047115215,20.43941043,155.48,155.42,20.0]
[1749047115427,20.43941043,155.48,155.4,1.5995]
[1749047115591,20.43941043,155.48,155.42,20.0]
[1749047116292,20.43941043,155.48,155.4,21.5995]
[1749047116486,20.43941043,155.48,155.42,20.0]
[1749047117316,20.43941043,155.48,155.41,20.0]
[1749047118202,20.43941043,155.48,155.39,20.0]
[1749047118203,26.0,155.45,155.39,20.0]
[1749047118401,26.0,155.45,155.4,20.0]
[1749047126213,26.0,155.45,155.39,20.0]
[1749047126828,26.0,155.45,155.4,20.0]
[1749047127820,26.0,155.45,155.41,20.0]
[1749047128811,46.29724886,155.48,155.42,20.0]
[1749047129507,26.0,155.48,155.42,20.0]
[1749047130108,26.0,155.48,155.43,20.0]
[1749047130330,26.0,155.48,155.42,20.0]
[1749047130534,26.0,155.48,155.43,20.0]
[1749047130839,18.79181043,155.47,155.4,20.0]
[1749047131131,18.79181043,155.47,155.42,20.0]
[1749047131517,26.0,155.48,155.42,20.0]
[1749047131714,26.0,155.44,155.38,20.0]
[1749047131928,26.0,155.44,155.39,20.0]
[1749047136210,44.64964886,155.47,155.41,20.0]
[1749047138032,26.0,155.47,155.41,20.0]
[1749047138234,26.0,155.47,155.42,20.0]
[1749047138735,1.6625,155.5,155.44,20.0]
[1749047139716,1.6625,155.5,155.41,1.5147]
[1749047139717,1.6625,155.5,155.45,20.0]
[1749047141416,1.6625,155.5,155.44,20.0]
[1749047141740,1.6625,155.5,155.45,20.0]
[1749047141949,1.6625,155.5,155.43,20.0]
[1749047142527,1.6625,155.5,155.44,20.0]
[1749047143123,1.6625,155.5,155.45,20.0]
[1749047143540,1.6625,155.5,155.44,20.0]
[1749047143713,1.6625,155.5,155.45,20.0]
[1749047144751,44.64964886,155.51,155.45,20.0]
[1749047145239,44.64964886,155.51,155.44,20.0]
[1749047145954,44.64964886,155.51,155.45,20.0]
[1749047147419,26.0,155.48,155.44,20.0]
[1749047147639,26.0,155.49,155.45,20.0]
[1749047148345,26.0,155.53,155.47,20.0]
[1749047148525,1.5588,155.54,155.48,20.0]
[1749047148716,26.0,155.53,155.48,20.0]
[1749047149032,25.11724886,155.56,155.49,20.0]
[1749047149033,18.64964886,155.56,155.49,20.0]
[1749047149439,26.0,155.53,155.49,20.0]
[1749047150019,18.933972,155.57,155.51,20.0]
[1749047150249,26.0,155.56,155.51,20.0]
[1749047154873,26.0,155.56,155.5,20.0]
[1749047155163,26.0,155.56,155.51,20.0]
[1749047156456,1.5254,155.58,155.52,20.0]
[1749047156457,26.0,155.57,155.52,20.0]
[1749047156759,1.6089,155.62,155.53,20.0]
[1749047156962,1.6089,155.62,155.54,20.0]
[1749047157162,0.8750776,155.64,155.57,20.0]
[1749047157368,26.8750776,155.64,155.57,20.0]
[1749047158268,0.8750776,155.64,155.57,20.0]
[1749047158456,44.64964886,155.63,155.57,20.0]
[1749047160788,44.64964886,155.63,155.53,1.5225]
[1749047160789,44.64964886,155.63,155.56,20.0]
[1749047161090,44.64964886,155.63,155.55,20.0]
[1749047161592,44.64964886,155.63,155.56,20.0]
[1749047161888,44.64964886,155.63,155.54,20.0]
[1749047161889,26.0,155.6,155.54,20.0]
[1749047162063,26.0,155.6,155.55,20.0]
[1749047162266,0.14216157,155.6,155.55,20.0]
[1749047162685,0.14216157,155.6,155.53,20.0]
[1749047162887,26.0,155.58,155.52,20.0]
[1749047163096,26.0,155.58,155.54,20.0]
[1749047164174,26.14216157,155.62,155.55,20.0]
[1749047165412,26.0,155.61,155.55,20.0]
[1749047166268,26.0,155.61,155.54,20.0]
[1749047166472,26.0,155.61,155.55,20.0]
[1749047168495,18.79181043,155.6,155.53,20.0]
[1749047169702,26.0,155.57,155.54,20.0]
[1749047170300,18.64964886,155.61,155.53,20.0]
[1749047170599,18.64964886,155.61,155.54,20.0]
[1749047171884,0.14216157,155.6,155.52,20.0]
[1749047172089,0.14216157,155.6,155.51,20.0]
[1749047172090,26.0,155.58,155.51,20.0]
[1749047172287,18.79181043,155.57,155.5,20.0]
[1749047172506,18.79181043,155.57,155.51,20.0]
[1749047172808,18.79181043,155.57,155.5,20.0]
[1749047172975,18.79181043,155.57,155.51,20.0]
[1749047173409,18.79181043,155.57,155.49,20.0]
[1749047173723,18.79181043,155.57,155.47,20.0]
[1749047173724,26.0,155.54,155.47,20.0]
[1749047173925,18.79181043,155.53,155.47,20.0]
[1749047175204,26.0,155.52,155.48,20.0]
[1749047176624,26.0,155.54,155.48,20.0]
[1749047178907,19.07613357,155.57,155.49,20.0]
[1749047178908,18.79181043,155.57,155.49,20.0]
[1749047179107,18.79181043,155.57,155.45,26.0]
[1749047179108,44.64964886,155.57,155.51,20.0]
[1749047179738,1.75936157,155.58,155.47,7.5666]
[1749047179739,1.6172,155.58,155.52,20.0]
[1749047180096,26.0,155.57,155.52,20.0]
[1749047180615,1.6172,155.58,155.52,20.0]
[1749047180800,26.0,155.57,155.53,20.0]
[1749047180996,1.6172,155.58,155.53,20.0]
[1749047181413,26.0,155.57,155.53,20.0]
[1749047181694,26.0,155.57,155.54,20.0]
[1749047183723,0.14216157,155.61,155.54,20.0]
[1749047183919,26.0,155.6,155.56,20.0]
[1749047186204,26.0,155.6,155.51,26.0]
[1749047186205,18.79181043,155.61,155.55,20.0]
[1749047186528,18.79181043,155.61,155.56,20.0]
[1749047187542,27.5023,155.62,155.56,20.0]
[1749047190327,0.28432314,155.61,155.53,20.0]
[1749047190546,26.0,155.58,155.53,20.0]
[1749047190937,18.933972,155.61,155.53,20.0]
[1749047191246,26.0,155.6,155.54,20.0]
[1749047191731,26.0,155.6,155.55,20.0]
[1749047192649,26.0,155.6,155.54,20.0]
[1749047192877,18.79181043,155.59,155.54,20.0]
[1749047193530,18.79181043,155.59,155.53,20.0]
[1749047193837,18.79181043,155.59,155.52,20.0]
[1749047194044,18.79181043,155.59,155.54,20.0]
[1749047194549,26.0,155.56,155.52,20.0]
[1749047194746,26.0,155.56,155.53,20.0]
[1749047195654,26.0,155.56,155.54,20.0]
[1749047196935,18.64964886,155.58,155.54,20.0]
[1749047199231,26.0,155.58,155.54,20.0]
[1749047199748,26.14216157,155.58,155.53,20.0]
[1749047200552,26.14216157,155.58,155.52,20.0]
[1749047200728,26.14216157,155.58,155.53,20.0]
[1749047201049,26.14216157,155.58,155.52,20.0]
[1749047201247,18.64964886,155.57,155.52,20.0]
[1749047202051,18.64964886,155.57,155.53,20.0]
[1749047202649,0.14216157,155.56,155.53,20.0]
[1749047204144,26.0,155.56,155.53,20.0]
[1749047204352,26.0,155.56,155.54,20.0]
[1749047204870,26.0,155.59,155.54,20.0]
[1749047206745,26.0,155.59,155.53,20.0]
[1749047207047,26.0,155.59,155.52,20.0]
[1749047207265,26.0,155.59,155.54,20.0]
[1749047207453,18.79181043,155.58,155.54,20.0]
[1749047207863,26.0,155.6,155.54,20.0]
[1749047208046,26.0,155.59,155.54,20.0]
[1749047210080,18.79181043,155.58,155.52,20.0]
[1749047210283,18.79181043,155.58,155.53,20.0]
[1749047214079,18.79181043,155.58,155.52,20.0]
[1749047214287,18.79181043,155.58,155.53,20.0]
[1749047214778,26.28432314,155.6,155.53,20.0]
[1749047215110,0.14216157,155.58,155.53,20.0]
[1749047219455,0.42648471,155.58,155.53,20.0]
[1749047220117,18.79181043,155.55,155.49,20.0]
[1749047220255,18.79181043,155.55,155.51,20.0]
[1749047220584,0.14216157,155.54,155.5,20.0]
[1749047220991,0.14216157,155.54,155.47,6.0295]
[1749047220992,0.14216157,155.54,155.48,20.0]
[1749047221166,0.42648471,155.54,155.48,20.0]
[1749047221368,18.79181043,155.51,155.47,20.0]
[1749047221561,18.79181043,155.51,155.45,20.0]
[1749047221790,18.79181043,155.51,155.46,20.0]
[1749047222085,18.79181043,155.51,155.47,20.0]
[1749047222660,18.79181043,155.51,155.45,20.0]
[1749047222858,18.79181043,155.51,155.47,20.0]
[1749047224271,18.79181043,155.51,155.45,20.0]
[1749047224459,18.79181043,155.51,155.47,20.0]
[1749047225287,26.0,155.54,155.48,20.0]
[1749047226270,26.0,155.54,155.47,20.0]
[1749047226499,26.0,155.54,155.48,20.0]
[1749047228401,26.0,155.54,155.49,20.0]
[1749047230286,0.14216157,155.55,155.49,20.0]
[1749047230287,26.0,155.53,155.49,20.0]
[1749047230486,26.0,155.53,155.48,20.0]
[1749047230705,26.0,155.53,155.49,20.0]
[1749047233593,26.0,155.53,155.48,20.0]
[1749047233791,26.0,155.53,155.49,20.0]
[1749047234901,1.5579,155.56,155.5,20.0]
[1749047235130,26.0,155.54,155.5,20.0]
[1749047235492,1.5579,155.56,155.5,20.0]
[1749047236902,26.0,155.55,155.5,20.0]
[1749047237209,26.0,155.55,155.51,20.0]
[1749047237593,18.79181043,155.58,155.51,20.0]
[1749047237920,18.79181043,155.58,155.52,20.0]
[1749047237921,26.14216157,155.57,155.52,20.0]
[1749047239117,26.0,155.57,155.52,20.0]
[1749047240433,26.0,155.57,155.51,20.0]
[1749047240611,26.0,155.57,155.53,20.0]
[1749047241006,18.79181043,155.56,155.52,20.0]
[1749047241611,18.79181043,155.57,155.52,20.0]
[1749047241811,18.79181043,155.59,155.54,20.0]
[1749047242120,26.0,155.58,155.54,20.0]
[1749047244150,18.79181043,155.57,155.51,20.0]
[1749047244302,0.14216157,155.57,155.52,20.0]
[1749047244500,0.28432314,155.57,155.5,20.0]
[1749047244823,0.28432314,155.57,155.47,36.6849695]
[1749047244824,26.0,155.55,155.49,20.0]
[1749047245929,26.0,155.55,155.48,20.0]
[1749047246315,18.79181043,155.54,155.48,20.0]
[1749047247827,18.79181043,155.54,155.49,20.0]
[1749047251538,26.0,155.53,155.49,20.0]
[1749047253209,26.0,155.55,155.5,20.0]
[1749047255449,26.0,155.56,155.51,20.0]
[1749047256422,26.0,155.56,155.5,20.0]
[1749047256630,26.0,155.56,155.51,20.0]
[1749047257038,26.0,155.56,155.5,20.0]
[1749047257438,26.0,155.56,155.48,1.5907]
[1749047257439,18.933972,155.55,155.48,21.5907]
[1749047257742,18.933972,155.55,155.49,20.0]
[1749047258132,18.933972,155.55,155.46,6.3017]
[1749047258133,18.933972,155.55,155.48,20.0]
[1749047258637,18.79181043,155.53,155.48,20.0]
[1749047258953,18.79181043,155.53,155.49,20.0]
[1749047259149,18.79181043,155.53,155.48,20.0]
[1749047259624,18.79181043,155.53,155.46,20.0]
[1749047259826,18.79181043,155.53,155.48,20.0]
[1749047261027,1.6447,155.54,155.47,20.0]
[1749047261344,1.6447,155.54,155.48,20.0]
[1749047263154,1.6447,155.54,155.46,20.0]
[1749047263464,1.6447,155.54,155.48,20.0]
[1749047263951,1.6447,155.54,155.47,20.0]
[1749047264156,1.6447,155.54,155.48,20.0]
[1749047264157,44.79181043,155.53,155.48,20.0]
[1749047265352,44.79181043,155.53,155.44,1.6343]
[1749047265353,44.79181043,155.53,155.46,20.0]
[1749047265548,0.14216157,155.52,155.45,20.0]
[1749047265843,0.14216157,155.52,155.47,20.0]
[1749047266160,44.79181043,155.53,155.47,20.0]
[1749047267838,26.0,155.53,155.45,20.0]
[1749047268042,26.0,155.53,155.47,20.0]
[1749047269749,18.79181043,155.52,155.47,20.0]
[1749047270459,18.79181043,155.52,155.45,20.0]
[1749047270672,18.79181043,155.52,155.47,20.0]
[1749047270958,26.0,155.49,155.47,20.0]
[1749047272077,26.0,155.49,155.46,20.0]
[1749047272240,26.0,155.49,155.44,21.6343]
[1749047272441,26.0,155.49,155.47,20.0]
[1749047272638,18.79181043,155.53,155.47,20.0]
[1749047273840,26.0,155.5,155.47,20.0]
[1749047275366,26.0,155.5,155.46,20.0]
[1749047275744,26.0,155.5,155.45,20.0]
[1749047276161,26.0,155.5,155.46,20.0]
[1749047277268,26.0,155.5,155.45,20.0]
[1749047277648,26.0,155.5,155.44,20.0]
[1749047277854,26.0,155.5,155.46,20.0]
[1749047283762,26.0,155.5,155.47,20.0]
[1749047284378,26.0,155.53,155.49,20.0]
[1749047285654,26.0,155.53,155.48,20.0]
[1749047285855,26.0,155.49,155.47,20.0]
[1749047286055,26.0,155.49,155.44,20.0]
[1749047286278,26.0,155.49,155.47,20.0]
[1749047286496,26.0,155.49,155.45,20.0]
[1749047286685,26.0,155.49,155.47,20.0]
[1749047286891,26.0,155.49,155.45,20.0]
[1749047287085,26.0,155.49,155.47,20.0]
[1749047288102,26.0,155.49,155.45,20.0]
[1749047288282,26.0,155.49,155.47,20.0]
[1749047289305,18.79181043,155.53,155.47,20.0]
[1749047289475,18.79181043,155.53,155.48,20.0]
[1749047289476,26.0,155.53,155.48,20.0]
[1749047289676,26.0,155.53,155.49,20.0]
[1749047290876,26.0,155.53,155.5,20.0]
[1749047291990,26.0,155.53,155.51,20.0]
[1749047292576,0.14216157,155.57,155.51,20.0]
[1749047292782,26.0,155.54,155.51,20.0]
[1749047293280,26.0,155.57,155.52,20.0]
[1749047294579,26.0,155.57,155.53,20.0]
[1749047295187,18.64964886,155.61,155.54,20.0]
[1749047295380,18.64964886,155.61,155.55,20.0]
[1749047295583,1.75356157,155.63,155.55,20.0]
[1749047295794,0.14216157,155.61,155.55,20.0]
[1749047296101,26.0,155.59,155.55,20.0]
[1749047299390,26.0,155.59,155.54,20.0]
[1749047299581,26.0,155.59,155.55,20.0]
[1749047301806,26.0,155.59,155.53,20.0]
[1749047302614,26.0,155.55,155.53,20.0]
[1749047303410,26.0,155.55,155.52,20.0]
[1749047303791,26.0,155.55,155.53,20.0]
[1749047304791,19.07613357,155.61,155.53,20.0]
[1749047304989,26.0,155.58,155.54,20.0]
[1749047308117,26.0,155.58,155.55,20.0]
[1749047309707,26.0,155.58,155.53,8.187]
[1749047309708,26.0,155.62,155.57,20.0]
[1749047312904,26.0,155.62,155.56,20.0]
[1749047313109,26.0,155.58,155.55,20.0]
[1749047313307,26.0,155.58,155.54,20.0]
[1749047313613,26.0,155.58,155.52,20.0]
[1749047313811,26.0,155.58,155.51,20.0]
[1749047313812,26.0,155.54,155.51,20.0]
[1749047315923,26.0,155.56,155.51,20.0]
[1749047316109,26.0,155.56,155.49,20.0]
[1749047316432,26.0,155.56,155.51,20.0]
[1749047318916,26.0,155.57,155.51,20.0]
[1749047319811,26.0,155.57,155.52,20.0]
[1749047320750,26.0,155.57,155.53,20.0]
[1749047323356,26.0,155.57,155.45,1.84272314]
[1749047323357,18.79181043,155.56,155.51,20.0]
[1749047323567,18.79181043,155.56,155.49,20.0]
[1749047323764,26.0,155.53,155.48,20.0]
[1749047324465,26.0,155.53,155.46,6.5508]
[1749047324466,26.0,155.53,155.49,20.0]
[1749047325652,26.0,155.53,155.47,20.0]
[1749047326480,26.0,155.49,155.43,20.0]
[1749047326780,26.0,155.49,155.38,8.1807]
[1749047326781,26.0,155.48,155.39,20.0]
[1749047326937,26.0,155.48,155.42,20.0]
[1749047327133,26.0,155.44,155.42,20.0]
[1749047327440,26.0,155.44,155.43,20.0]
[1749047327787,18.79181043,155.47,155.43,20.0]
[1749047327788,26.0,155.47,155.43,20.0]
[1749047329046,26.0,155.47,155.44,20.0]
[1749047332381,26.0,155.47,155.45,20.0]
[1749047332558,26.0,155.47,155.46,20.0]
[1749047334276,26.0,155.47,155.45,20.0]
[1749047334869,26.0,155.47,155.44,20.0]
[1749047335042,26.0,155.47,155.45,20.0]
[1749047336465,26.0,155.47,155.43,20.0]
[1749047336871,26.0,155.47,155.44,20.0]
[1749047340349,26.0,155.43,155.41,20.0]
[1749047340591,26.0,155.43,155.42,20.0]
[1749047340754,26.0,155.43,155.38,8.1807]
[1749047340755,26.0,155.43,155.4,20.0]
[1749047340957,26.0,155.43,155.42,20.0]
[1749047343762,26.0,155.43,155.38,8.1807]
[1749047343763,26.0,155.43,155.41,20.0]
[1749047343966,26.0,155.43,155.4,20.0]
[1749047344360,26.0,155.43,155.41,20.0]
[1749047344561,26.0,155.43,155.42,20.0]
[1749047345160,26.0,155.43,155.41,20.0]
[1749047345685,26.0,155.43,155.39,20.0]
[1749047345885,18.79181043,155.45,155.39,20.0]
[1749047346074,18.79181043,155.45,155.34,8.22096157]
[1749047346075,26.0,155.42,155.4,20.0]
[1749047346267,26.0,155.42,155.41,20.0]
[1749047346583,1.70176157,155.46,155.41,20.0]
[1749047346584,26.0,155.44,155.41,20.0]
[1749047346788,26.0,155.44,155.34,8.50528471]
[1749047346789,26.0,155.44,155.42,20.0]
[1749047347185,26.0,155.46,155.43,20.0]
[1749047347690,26.0,155.46,155.42,20.0]
[1749047347894,26.0,155.47,155.43,20.0]
[1749047349271,26.0,155.47,155.45,20.0]
[1749047351083,26.0,155.47,155.44,20.0]
[1749047351280,26.0,155.47,155.39,8.2836]
[1749047351281,26.0,155.47,155.45,20.0]
[1749047351689,26.0,155.47,155.39,8.2836]
[1749047351690,26.0,155.47,155.44,20.0]
[1749047351995,26.0,155.47,155.45,20.0]
[1749047352995,26.0,155.5,155.45,20.0]
[1749047353193,0.14216157,155.54,155.48,20.0]
[1749047353397,18.79181043,155.54,155.5,20.0]
[1749047353605,18.64964886,155.54,155.5,20.0]
[1749047353973,26.0,155.51,155.5,20.0]
[1749047355694,26.0,155.54,155.5,20.0]
[1749047357703,26.0,155.54,155.49,20.0]
[1749047358001,26.0,155.54,155.48,20.0]
[1749047358186,26.0,155.5,155.47,20.0]
[1749047358508,26.0,155.5,155.49,20.0]
[1749047359094,26.0,155.5,155.48,20.0]
[1749047359287,26.0,155.5,155.49,20.0]
[1749047361112,26.0,155.5,155.48,20.0]
[1749047363611,26.0,155.5,155.47,20.0]
[1749047364305,26.0,155.5,155.48,20.0]
[1749047364508,26.0,155.5,155.46,20.0]
[1749047364711,26.0,155.5,155.48,20.0]
[1749047365190,26.0,155.5,155.46,20.0]
[1749047365782,26.0,155.49,155.47,20.0]
[1749047366189,26.0,155.49,155.45,20.0]
[1749047366601,26.0,155.49,155.47,20.0]
[1749047369820,26.0,155.5,155.47,20.0]
[1749047370219,18.79181043,155.54,155.47,20.0]
[1749047370220,26.0,155.51,155.47,20.0]
[1749047375694,18.79181043,155.54,155.48,20.0]
[1749047375895,0.14216157,155.54,155.49,20.0]
[1749047376111,18.79181043,155.54,155.5,20.0]
[1749047376507,44.79181043,155.54,155.5,20.0]
[1749047387425,44.64964886,155.54,155.5,20.0]
[1749047395630,26.0,155.54,155.5,20.0]
[1749047398451,115.0,155.56,155.52,20.0]
[1749047399033,115.0,155.56,155.51,20.0]
[1749047399237,26.0,155.56,155.51,20.0]
[1749047399460,26.0,155.56,155.52,20.0]
[1749047402722,26.0,155.56,155.51,20.0]
[1749047403045,18.64964886,155.55,155.49,20.0]
[1749047403259,18.64964886,155.55,155.48,20.0]
[1749047403549,18.64964886,155.55,155.47,20.0]
[1749047403763,26.0,155.52,155.48,20.0]
[1749047404059,26.0,155.52,155.49,20.0]
[1749047405456,26.0,155.54,155.5,20.0]
[1749047408224,26.0,155.52,155.5,20.0]
[1749047411255,26.0,155.55,155.5,20.0]
[1749047411443,26.0,155.55,155.51,20.0]
[1749047411658,23.45811923,155.58,155.52,20.0]
[1749047411659,18.64964886,155.57,155.52,20.0]
[1749047411846,26.0,155.56,155.52,20.0]
[1749047415836,26.0,155.56,155.53,20.0]
[1749047419547,26.0,155.56,155.52,20.0]
[1749047419860,26.0,155.56,155.53,20.0]
[1749047425850,26.0,155.56,155.52,20.0]
[1749047426044,26.0,155.56,155.53,20.0]
[1749047427067,26.0,155.57,155.53,20.0]
[1749047427467,26.0,155.57,155.56,20.0]
[1749047427640,26.0,155.6,155.56,20.0]
[1749047432573,26.0,155.6,155.55,20.0]
[1749047432750,26.0,155.6,155.56,20.0]
[1749047433383,4.06949501,155.64,155.59,20.0]
[1749047433686,26.0,155.63,155.59,20.0]
[1749047433986,4.06949501,155.64,155.59,20.0]